bitfinex/quotes_BTCUSD_20250127
["timestamp","ask_amount","ask_price","bid_price","bid_amount"]
[1737963719549,0.01589782,98896.0,98893.0,0.301679]
[1737963719550,0.00822282,98894.0,98893.0,0.301679]
[1737963719760,0.01,98956.0,98918.0,0.30164]
[1737963720015,0.202088,98967.0,98918.0,1.33070782]
[1737963720219,0.008223,98943.0,98918.0,2.08055882]
[1737963720423,0.00982398,98961.0,98918.0,1.89638013]
[1737963720628,0.0759,98965.0,98918.0,1.89638013]
[1737963720838,0.004044,98950.0,98918.0,1.77722513]
[1737963721050,0.01398126,98939.0,98938.0,0.15161]
[1737963721290,0.0141298,98939.0,98938.0,1.54697982]
[1737963721494,0.0141298,98939.0,98938.0,1.85858382]
[1737963721910,0.01237447,98939.0,98938.0,1.85858382]
[1737963722119,0.01,98990.0,98989.0,0.301531]
[1737963722347,0.0001416,99018.0,98998.0,0.15]
[1737963722348,3.3e-07,99000.0,98998.0,0.15]
[1737963722555,3.3e-07,99000.0,98997.0,0.202026]
[1737963722556,0.0001416,99018.0,99017.0,0.301489]
[1737963722760,0.0001416,99018.0,99017.0,1.56735682]
[1737963722963,0.0001416,99018.0,99017.0,2.89941782]
[1737963723170,0.0001416,99018.0,99017.0,1.56735682]
[1737963723377,0.00063716,99018.0,99017.0,1.70929327]
[1737963723594,0.00063716,99018.0,99017.0,1.56735682]
[1737963723869,0.01362691,99038.0,99019.0,0.151486]
[1737963724050,0.01377547,99038.0,99020.0,0.09734729]
[1737963724435,0.00083471,99027.0,99017.0,0.001]
[1737963724834,0.151477,99025.0,99017.0,0.09834729]
[1737963725194,0.00365788,99026.0,98996.0,0.15152]
[1737963725396,0.151483,99021.0,99020.0,0.001]
[1737963725559,0.174483,99021.0,99020.0,0.001]
[1737963725764,0.17835573,99021.0,99020.0,0.001]
[1737963725919,0.17835573,99021.0,98963.0,0.93172053]
[1737963725920,0.01,99020.0,98963.0,0.93172053]
[1737963726141,0.01,99014.0,98964.0,0.33314729]
[1737963726346,0.00083471,99000.0,98964.0,0.09734729]
[1737963726542,0.00083471,99000.0,98965.0,0.202091]
[1737963726788,0.00083471,99000.0,98982.0,0.09734729]
[1737963726995,0.00083471,99000.0,98982.0,0.151541]
[1737963727319,0.00083471,99000.0,98973.0,0.50269004]
[1737963727320,0.00083471,99000.0,98983.0,0.09734729]
[1737963727526,0.00083471,99000.0,98971.0,0.93172053]
[1737963727764,0.00083471,99000.0,98983.0,0.09734729]
[1737963727974,0.00083471,99000.0,98984.0,0.202052]
[1737963727975,0.00098316,99000.0,98984.0,0.202052]
[1737963728191,0.00083471,98993.0,98985.0,0.09734729]
[1737963728600,0.00083471,98993.0,98990.0,0.08979463]
[1737963728601,0.151528,98991.0,98990.0,0.08979463]
[1737963728960,0.1555206,98991.0,98990.0,0.08979463]
[1737963729765,0.1575206,98991.0,98990.0,0.08979463]
[1737963730255,0.00904786,98991.0,98990.0,0.18714192]
[1737963730455,0.00805526,98991.0,98990.0,1.11886245]
[1737963730651,0.00805526,98991.0,98990.0,0.18714192]
[1737963731033,0.16258326,98991.0,98990.0,0.10469268]
[1737963731253,0.16656896,98991.0,98990.0,0.10469268]
[1737963731438,0.16356896,98991.0,98990.0,0.10469268]
[1737963731639,0.16356896,98991.0,98990.0,0.01489805]
[1737963731869,0.16156896,98991.0,98990.0,0.01489805]
[1737963732210,0.16156896,98991.0,98990.0,0.002]
[1737963732414,0.16156896,98991.0,98971.0,0.01489805]
[1737963732839,0.151553,98975.0,98971.0,0.01489805]
[1737963733007,0.404088,98988.0,98967.0,0.08979463]
[1737963733215,0.00505526,98991.0,98968.0,0.09734729]
[1737963733546,0.00805526,98991.0,98970.0,0.15]
[1737963733767,0.00082737,98972.0,98971.0,1.39386581]
[1737963734006,0.00082737,98972.0,98971.0,1.00351929]
[1737963734211,0.00082737,98972.0,98971.0,1.50620933]
[1737963734419,0.00082737,98972.0,98971.0,0.63480629]
[1737963734626,0.00082737,98972.0,98971.0,0.52421529]
[1737963734830,0.00082737,98972.0,98971.0,0.53132729]
[1737963735283,0.003,98991.0,98990.0,0.15153]
[1737963735486,0.003,98991.0,98990.0,0.09734729]
[1737963735687,0.003,98991.0,98990.0,0.11223243]
[1737963735892,0.003,98991.0,98990.0,0.01488514]
[1737963736408,0.00082737,98992.0,98990.0,0.01488514]
[1737963736604,0.00082737,98992.0,98991.0,0.09734729]
[1737963736877,0.00082737,98992.0,98981.0,0.21694214]
[1737963737076,0.00082737,98992.0,98981.0,0.01488514]
[1737963737277,0.00082737,98992.0,98982.0,0.151542]
[1737963737496,0.00082737,98992.0,98990.0,0.001]
[1737963737697,0.00082737,98992.0,98991.0,0.09734729]
[1737963738205,0.00182737,98992.0,98984.0,0.01488514]
[1737963738556,0.00082737,98985.0,98984.0,0.16642414]
[1737963738774,0.00082737,98985.0,98984.0,0.01488514]
[1737963738975,0.00082737,98985.0,98984.0,0.16642414]
[1737963739209,0.00082737,98985.0,98984.0,0.01488514]
[1737963739785,0.00082737,98985.0,98984.0,0.16642414]
[1737963740148,0.00078737,98985.0,98984.0,0.16642414]
[1737963740377,0.00078737,98985.0,98984.0,0.01488514]
[1737963740583,0.00505417,98985.0,98984.0,0.01788514]
[1737963740792,0.00505417,98985.0,98984.0,0.16642414]
[1737963740960,0.00505417,98985.0,98984.0,0.26377143]
[1737963741189,0.00505417,98985.0,98984.0,0.41677143]
[1737963741385,0.00505417,98985.0,98984.0,0.41377143]
[1737963741602,0.00505417,98985.0,98984.0,0.67906443]
[1737963741744,0.00505417,98985.0,98984.0,0.58206443]
[1737963743079,0.00505417,98985.0,98984.0,0.51385443]
[1737963743248,0.00505417,98985.0,98984.0,0.51685443]
[1737963743856,0.00505417,98985.0,98984.0,0.51385443]
[1737963744077,0.00505417,98985.0,98984.0,0.51685443]
[1737963744275,0.00999168,99026.0,98985.0,0.15]
[1737963744471,0.00999168,99026.0,99001.0,0.202016]
[1737963744697,0.00999168,99026.0,98996.0,0.93172053]
[1737963744698,0.151511,99003.0,98996.0,0.93172053]
[1737963744937,0.201971,99024.0,98985.0,0.15]
[1737963745142,0.201971,99024.0,98998.0,0.151517]
[1737963745143,0.09734729,99023.0,98998.0,0.151517]
[1737963745390,0.02022339,99013.0,98996.0,0.202027]
[1737963745648,0.02022339,99013.0,98987.0,0.15]
[1737963745800,0.02022339,99013.0,98988.0,0.09734729]
[1737963745975,0.00397626,99012.0,98989.0,0.202042]
[1737963746181,0.00397626,99012.0,99007.0,0.151504]
[1737963746387,0.01007228,99019.0,99003.0,0.151509]
[1737963746580,0.151486,99019.0,99004.0,0.151508]
[1737963746797,0.151486,99019.0,98999.0,0.202021]
[1737963746798,0.02007658,99016.0,98999.0,0.202021]
[1737963747003,0.01854,99019.0,99000.0,0.09734729]
[1737963747334,0.001,99012.0,98991.0,0.202038]
[1737963747531,0.001,99012.0,98994.0,0.15]
[1737963747750,0.01854,99019.0,99009.0,0.1515]
[1737963747751,0.02154,99019.0,99009.0,0.1515]
[1737963747942,0.02154,99019.0,99010.0,0.151499]
[1737963748168,0.151467,99031.0,99019.0,0.151485]
[1737963748382,0.00357863,99018.0,99017.0,0.151489]
[1737963748593,0.01362691,99038.0,99019.0,0.15]
[1737963748763,0.01362691,99038.0,99020.0,0.09734729]
[1737963748960,0.01362691,99038.0,99022.0,0.15148]
[1737963749176,0.151476,99026.0,99020.0,0.01488514]
[1737963749511,0.01362691,99038.0,99020.0,0.01488514]
[1737963749512,0.00363772,99025.0,99020.0,0.01488514]
[1737963749714,0.201959,99030.0,99020.0,0.01488514]
[1737963749920,0.00363772,99024.0,99016.0,0.151489]
[1737963750229,0.201948,99035.0,99016.0,0.151489]
[1737963750446,0.00363772,99023.0,99022.0,0.301481]
[1737963750644,0.001,99026.0,99022.0,0.92668629]
[1737963750795,0.001,99026.0,99025.0,0.301476]
[1737963751000,0.01377528,99038.0,99030.0,0.151468]
[1737963751206,0.01377528,99038.0,99025.0,0.09734729]
[1737963751436,0.01377528,99038.0,99028.0,0.09734729]
[1737963751594,0.01377528,99038.0,99037.0,0.151458]
[1737963751800,0.01377528,99038.0,99037.0,0.24880529]
[1737963751997,0.01323923,99038.0,99037.0,0.24880529]
[1737963753446,0.01323923,99038.0,99037.0,0.39880529]
[1737963753658,0.01423923,99038.0,99037.0,0.39980529]
[1737963753900,0.01423923,99038.0,99037.0,0.152458]
[1737963754070,0.01423923,99038.0,99037.0,0.001]
[1737963754286,0.01758161,99038.0,99037.0,0.001]
[1737963754510,0.151462,99035.0,99018.0,0.93172053]
[1737963754716,0.018291,99038.0,99037.0,0.005]
[1737963755745,0.023,99036.0,98984.0,0.00029715]
[1737963755963,0.151518,98998.0,98984.0,0.00029715]
[1737963756171,0.023,99018.0,98984.0,0.00029715]
[1737963756396,0.04853575,99038.0,99005.0,0.202009]
[1737963756593,0.00332561,99017.0,99016.0,0.15149]
[1737963756795,0.03835102,99038.0,99006.0,0.09734729]
[1737963757002,0.01814263,99038.0,99037.0,0.153458]
[1737963757209,0.01814263,99038.0,99037.0,0.151458]
[1737963757210,0.018291,99038.0,99037.0,0.151458]
[1737963757623,0.01323923,99038.0,99037.0,0.151458]
[1737963758053,0.01323923,99038.0,99037.0,0.39880529]
[1737963759052,0.01323923,99038.0,99030.0,0.201959]
[1737963759251,0.01829066,99038.0,99037.0,0.151458]
[1737963759481,0.01829066,99038.0,99032.0,0.151464]
[1737963759679,0.01829066,99038.0,98991.0,0.303056]
[1737963759842,0.201944,99037.0,99015.0,0.201987]
[1737963760038,0.00505143,99037.0,99020.0,0.201978]
[1737963760243,0.00505143,99037.0,99025.0,0.151476]
[1737963760491,0.00505143,99037.0,99017.0,0.15]
[1737963760864,0.00505143,99037.0,98993.0,0.93172053]
[1737963761229,0.20699743,99036.0,99022.0,0.15477694]
[1737963761513,0.201948,99035.0,99022.0,0.00329694]
[1737963761758,0.151474,99027.0,99022.0,0.00029694]
[1737963761938,0.00505143,99036.0,99022.0,0.00029694]
[1737963762375,0.00505143,99036.0,99022.0,0.09764423]
[1737963762580,0.151464,99033.0,99024.0,0.151477]
[1737963762786,0.00505143,99026.0,99022.0,0.09764423]
[1737963762933,0.00505143,99026.0,99025.0,0.151476]
[1737963763320,0.00505143,99032.0,99027.0,0.151473]
[1737963763703,0.00505143,99032.0,99031.0,0.151467]
[1737963763908,0.00505143,99032.0,99031.0,0.24881429]
[1737963764124,0.00505143,99032.0,99031.0,0.151467]
[1737963764356,0.01323923,99038.0,99024.0,0.15]
[1737963764564,0.01323923,99038.0,99037.0,0.151458]
[1737963765275,0.01323923,99038.0,99004.0,0.59248467]
[1737963765644,0.151459,99037.0,99027.0,0.151473]
[1737963765840,0.15478632,99037.0,99028.0,0.15147]
[1737963766165,0.00332732,99037.0,99035.0,0.15146]
[1737963766364,0.00332732,99037.0,99036.0,0.15146]
[1737963766564,0.01829111,99038.0,99037.0,0.151458]
[1737963766785,0.01829111,99038.0,99034.0,0.151461]
[1737963766986,0.01829111,99038.0,99035.0,0.08979463]
[1737963767171,0.00505188,99037.0,99035.0,0.24125463]
[1737963767617,0.15650988,99037.0,99035.0,0.08979463]
[1737963767900,0.00505188,99037.0,99035.0,0.08979463]
[1737963768157,0.00333345,99036.0,99035.0,0.08979463]
[1737963768615,0.00333345,99036.0,99035.0,1.17297616]
[1737963768840,0.00234011,99038.0,99037.0,0.151458]
[1737963769117,0.00234011,99038.0,99037.0,0.24880529]
[1737963769327,0.00234011,99038.0,99037.0,0.39880529]
[1737963769547,0.00134011,99038.0,99037.0,0.39880529]
[1737963769747,0.00134011,99038.0,99037.0,0.63420529]
[1737963770159,0.00134011,99038.0,99037.0,0.65172082]
[1737963771100,0.00134011,99038.0,99037.0,0.64972082]
[1737963771234,0.00134011,99038.0,99037.0,0.65172082]
[1737963773104,0.00134011,99038.0,99037.0,0.64972082]
[1737963773251,0.00134011,99038.0,99037.0,0.68294777]
[1737963773451,0.00134011,99038.0,99037.0,1.12786977]
[1737963773853,1.1e-07,99038.0,99037.0,1.12786977]
[1737963774055,4e-05,99049.0,99048.0,0.301441]
[1737963774389,4e-05,99049.0,99048.0,1.43843577]
[1737963774567,4e-05,99061.0,99050.0,0.301438]
[1737963774766,4e-05,99061.0,99050.0,0.75596224]
[1737963774992,4e-05,99061.0,99050.0,0.79847624]
[1737963775369,6.9e-07,99051.0,99050.0,1.14807624]
[1737963775573,4e-05,99061.0,99060.0,0.301423]
[1737963775774,4e-05,99061.0,99060.0,1.59711777]
[1737963775978,0.00304348,99061.0,99060.0,2.84503877]
[1737963776181,2.5,99062.0,99061.0,0.301421]
[1737963776401,2.5,99062.0,99061.0,1.91311624]
[1737963777005,1.19565128,99062.0,99061.0,2.33941624]
[1737963777163,4e-05,99086.0,99061.0,2.33941624]
[1737963777164,0.0001416,99099.0,99098.0,0.301365]
[1737963777363,0.0150033,99138.0,99119.0,0.301333]
[1737963777587,0.0150033,99138.0,99119.0,1.33040082]
[1737963777807,0.0150033,99138.0,99119.0,1.86775082]
[1737963777984,0.00028982,99120.0,99119.0,1.86775082]
[1737963778414,0.00028982,99120.0,99119.0,1.92239427]
[1737963778769,0.00128982,99120.0,99119.0,2.23836517]
[1737963779514,1e-08,99120.0,99119.0,2.24225633]
[1737963779714,1e-08,99120.0,99119.0,1.64737172]
[1737963779916,0.0150033,99138.0,99130.0,0.151316]
[1737963780113,0.00056436,99131.0,99130.0,1.18038382]
[1737963780320,0.15187836,99131.0,99130.0,0.93172053]
[1737963780523,0.151333,99119.0,99118.0,0.33232]
[1737963780761,0.00056436,99131.0,99118.0,0.33232]
[1737963780938,0.00056436,99131.0,99119.0,0.25534729]
[1737963781137,0.00056436,99131.0,99130.0,0.001]
[1737963781528,0.00056436,99131.0,99130.0,0.006]
[1737963781729,0.15187836,99131.0,99130.0,0.005]
[1737963782279,0.24922565,99131.0,99130.0,0.005]
[1737963782734,0.15187836,99131.0,99130.0,0.005]
[1737963782941,0.00056436,99131.0,99130.0,0.24866329]
[1737963783153,0.00056436,99131.0,99130.0,1.18038382]
[1737963783357,0.00052436,99131.0,99130.0,0.151316]
[1737963783569,0.00052436,99131.0,99117.0,1.13350053]
[1737963783782,0.00052436,99131.0,99130.0,0.151316]
[1737963783994,0.00066586,99131.0,99130.0,0.151316]
[1737963784426,0.00066586,99131.0,99130.0,0.24866329]
[1737963784888,0.00066586,99131.0,99130.0,0.26355286]
[1737963785103,0.00066586,99131.0,99130.0,0.16620557]
[1737963785743,0.00066586,99131.0,99130.0,0.31620557]
[1737963785956,0.00063586,99131.0,99130.0,0.01488957]
[1737963786369,0.00063586,99131.0,99130.0,0.16620557]
[1737963786813,0.00054543,99131.0,99130.0,0.26355286]
[1737963787034,0.00054543,99131.0,99130.0,0.01488957]
[1737963787251,0.00054543,99131.0,99130.0,0.151316]
[1737963787451,0.00054543,99131.0,99128.0,0.151318]
[1737963787661,0.00054543,99131.0,99130.0,0.003]
[1737963787867,0.00054543,99131.0,99130.0,0.154316]
[1737963788095,0.00054543,99131.0,99130.0,0.151316]
[1737963788358,0.00054543,99131.0,99112.0,0.2346]
[1737963788359,0.201755,99130.0,99114.0,0.93172053]
[1737963788574,0.0465,99127.0,99095.0,0.201825]
[1737963788789,0.0465,99127.0,99088.0,0.09692]
[1737963788790,0.023,99120.0,99090.0,0.0156168]
[1737963789013,0.274072,99093.0,99088.0,0.09692]
[1737963789229,0.37141929,99093.0,99048.0,0.95216396]
[1737963789439,0.1227,99093.0,99092.0,0.151374]
[1737963789659,0.151324,99125.0,99115.0,0.151339]
[1737963789893,0.00054543,99131.0,99113.0,0.151341]
[1737963789894,0.151328,99122.0,99113.0,0.151341]
[1737963790105,0.201764,99126.0,99095.0,0.009]
[1737963790338,0.0001415,99131.0,99098.0,0.09734729]
[1737963790550,0.0001415,99131.0,99118.0,0.301334]
[1737963790766,0.00343984,99119.0,99118.0,0.301334]
[1737963791198,0.00343984,99119.0,99118.0,0.39868129]
[1737963791616,0.00343984,99119.0,99118.0,0.301334]
[1737963791830,0.00343984,99119.0,99118.0,2.09693582]
[1737963792030,0.00343984,99119.0,99118.0,1.56510182]
[1737963792275,0.00343984,99119.0,99118.0,1.69047382]
[1737963792479,0.00343984,99119.0,99118.0,1.56510182]
[1737963792687,0.00343984,99119.0,99118.0,1.90511782]
[1737963792875,0.00343984,99119.0,99118.0,1.69899382]
[1737963793122,0.00343984,99119.0,99118.0,1.56610182]
[1737963793339,0.00343984,99119.0,99118.0,1.74095582]
[1737963793574,0.00343984,99119.0,99118.0,1.74995582]
[1737963793774,0.00343984,99119.0,99118.0,1.95750382]
[1737963793985,0.00343984,99119.0,99118.0,1.92099582]
[1737963794237,0.00343984,99119.0,99118.0,1.93199582]
[1737963794437,0.00343984,99119.0,99118.0,2.39989986]
[1737963794654,0.00343984,99119.0,99118.0,1.88620982]
[1737963794861,0.00343984,99119.0,99118.0,1.76839382]
[1737963795491,0.000494,99119.0,99118.0,1.76839382]
[1737963795696,0.0001415,99131.0,99130.0,0.301316]
[1737963795946,0.0001415,99131.0,99130.0,1.33038382]
[1737963796174,0.0001415,99131.0,99130.0,4.45006482]
[1737963796372,0.0001415,99131.0,99130.0,4.14224482]
[1737963796595,0.0001415,99131.0,99130.0,4.00232482]
[1737963796854,0.0001415,99131.0,99130.0,2.47394782]
[1737963797111,0.0001415,99131.0,99130.0,1.96579182]
[1737963797351,0.0001415,99131.0,99130.0,1.20503953]
[1737963797518,0.0001415,99131.0,99130.0,0.94072053]
[1737963797734,0.0001415,99131.0,99130.0,1.09503653]
[1737963797943,0.0001415,99131.0,99130.0,0.012]
[1737963798155,0.1514555,99131.0,99130.0,0.012]
[1737963798362,0.1514555,99131.0,99130.0,0.003]
[1737963798977,0.1514555,99131.0,99118.0,0.00038716]
[1737963798978,0.151333,99119.0,99118.0,0.00038716]
[1737963799834,0.0001415,99131.0,99118.0,0.00038716]
[1737963800041,0.151333,99119.0,99118.0,0.00038716]
[1737963800661,0.201755,99130.0,99118.0,0.00038716]
[1737963800866,0.201757,99129.0,99118.0,0.00038716]
[1737963801077,0.0001415,99131.0,99119.0,0.09734729]
[1737963801283,0.0001415,99131.0,99130.0,0.151316]
[1737963801505,0.0001415,99131.0,99130.0,0.09734729]
[1737963801730,0.0001415,99131.0,99130.0,1.33038382]
[1737963801958,0.0001415,99131.0,99130.0,0.39866329]
[1737963802540,0.0001415,99131.0,99130.0,0.48326329]
[1737963802751,0.0001415,99131.0,99116.0,0.2345]
[1737963802896,0.0001415,99131.0,99130.0,0.151316]
[1737963803097,0.0001415,99131.0,99125.0,0.201764]
[1737963803311,0.0001415,99131.0,99130.0,0.151316]
[1737963803584,0.0001415,99131.0,99130.0,0.156316]
[1737963803782,0.0001415,99131.0,99130.0,0.005]
[1737963804051,0.201755,99130.0,99118.0,0.00038716]
[1737963804269,0.0772,99129.0,99118.0,0.00038716]
[1737963804468,0.0772,99129.0,99125.0,0.153323]
[1737963804709,0.0772,99129.0,99125.0,0.002]
[1737963805086,0.151322,99126.0,99125.0,0.002]
[1737963805262,0.0772,99129.0,99118.0,0.00138716]
[1737963805464,0.201763,99126.0,99118.0,0.00138716]
[1737963805679,0.0772,99129.0,99118.0,0.00138716]
[1737963805884,0.0772,99129.0,99118.0,0.00038716]
[1737963806088,0.0001415,99131.0,99130.0,0.301316]
[1737963806262,0.0001415,99131.0,99130.0,0.39866329]
[1737963806465,0.0001415,99131.0,99130.0,0.80501829]
[1737963806870,0.0001415,99131.0,99130.0,0.83614702]
[1737963807074,0.0592732,99168.0,99165.0,0.151262]
[1737963807273,0.0592732,99168.0,99167.0,0.151259]
[1737963807545,0.201642,99186.0,99153.0,0.15]
[1737963807750,0.151241,99180.0,99170.0,0.151254]
[1737963807955,0.151241,99180.0,99172.0,0.151252]
[1737963808175,0.151241,99180.0,99168.0,0.201676]
[1737963808360,0.151227,99189.0,99158.0,0.93172053]
[1737963808492,0.00014826,99180.0,99177.0,0.151244]
[1737963808694,0.00014826,99180.0,99179.0,0.151241]
[1737963809319,0.00014826,99180.0,99173.0,0.16725519]
[1737963809516,0.00014826,99180.0,99168.0,0.93172053]
[1737963809767,0.00014826,99180.0,99167.0,0.001]
[1737963809965,0.00014826,99180.0,99166.0,0.201681]
[1737963810173,0.00014826,99180.0,99179.0,0.003]
[1737963810384,0.15138826,99180.0,99179.0,0.003]
[1737963810635,0.00014826,99180.0,99165.0,0.2341]
[1737963810842,0.00014826,99180.0,99168.0,0.003]
[1737963811085,0.00014826,99180.0,99179.0,0.151241]
[1737963812048,0.00014826,99180.0,99177.0,0.151244]
[1737963812253,0.00014826,99180.0,99166.0,0.15]
[1737963812460,0.00014826,99180.0,99176.0,0.151245]
[1737963812655,0.00014826,99180.0,99166.0,0.15]
[1737963812902,0.00014826,99180.0,99177.0,0.151244]
[1737963813244,0.0772,99202.0,99167.0,0.09734729]
[1737963813462,0.151205,99203.0,99196.0,0.151214]
[1737963813673,0.201601,99206.0,99181.0,0.93172053]
[1737963813876,0.01719223,99213.0,99182.0,0.24734729]
[1737963814082,0.151204,99204.0,99193.0,0.151219]
[1737963814291,0.001,99180.0,99175.0,0.93172053]
[1737963814500,0.001,99180.0,99179.0,0.151241]
[1737963814708,0.02028235,99205.0,99179.0,0.24734729]
[1737963814879,0.02028235,99205.0,99181.0,0.001]
[1737963815700,0.201605,99204.0,99182.0,0.201649]
[1737963815940,0.151215,99197.0,99189.0,0.151225]
[1737963816148,0.02028235,99205.0,99171.0,0.15]
[1737963816319,0.02028235,99205.0,99172.0,0.67712629]
[1737963816531,0.02028235,99205.0,99175.0,0.006]
[1737963816738,0.0015,99213.0,99179.0,0.001]
[1737963816945,0.151199,99207.0,99196.0,0.151215]
[1737963817141,0.01988482,99209.0,99189.0,0.001]
[1737963817348,0.01988482,99209.0,99189.0,0.201635]
[1737963817556,0.0015,99213.0,99189.0,0.201635]
[1737963817762,0.151195,99210.0,99198.0,0.151211]
[1737963817965,0.151196,99209.0,99181.0,0.201651]
[1737963818167,0.25003729,99213.0,99201.0,0.151207]
[1737963818394,0.25003729,99213.0,99182.0,0.201649]
[1737963818395,0.09734729,99212.0,99182.0,0.201649]
[1737963818611,0.151195,99210.0,99185.0,0.201643]
[1737963818816,0.0015,99213.0,99209.0,0.151195]
[1737963819021,0.00014818,99210.0,99186.0,0.09734729]
[1737963819236,0.00014818,99210.0,99207.0,0.151198]
[1737963819458,0.00014818,99210.0,99186.0,0.09734729]
[1737963819680,0.00014818,99210.0,99189.0,0.002]
[1737963819917,0.00014818,99210.0,99205.0,0.151201]
[1737963820122,0.00014818,99210.0,99201.0,0.201609]
[1737963820351,0.00014818,99210.0,99188.0,0.201637]
[1737963820754,0.00014818,99210.0,99207.0,0.151198]
[1737963820989,0.00014818,99210.0,99189.0,0.10634729]
[1737963821193,0.00028948,99210.0,99208.0,0.151197]
[1737963821393,0.00028948,99210.0,99189.0,0.09934729]
[1737963821524,0.00028948,99210.0,99209.0,0.151195]
[1737963821726,0.00028948,99210.0,99188.0,0.211635]
[1737963822119,0.151211,99199.0,99196.0,0.08920108]
[1737963822368,0.151214,99197.0,99196.0,0.08920108]
[1737963822772,0.00028948,99210.0,99196.0,0.08920108]
[1737963822773,0.201594,99209.0,99196.0,0.08920108]
[1737963823020,0.151199,99207.0,99199.0,0.151211]
[1737963823224,0.1512,99206.0,99198.0,0.151212]
[1737963823430,0.151201,99206.0,99198.0,0.151212]
[1737963823844,0.00028948,99210.0,99196.0,0.09420108]
[1737963824126,0.00028948,99210.0,99198.0,0.201615]
[1737963824366,0.00028948,99210.0,99206.0,0.1512]
[1737963824594,0.00028948,99210.0,99207.0,0.151198]
[1737963824810,0.00028948,99210.0,99196.0,0.08920108]
[1737963824811,0.00028948,99210.0,99205.0,0.151201]
[1737963825026,0.151204,99204.0,99189.0,0.201635]
[1737963825273,0.201623,99195.0,99183.0,0.08920108]
[1737963825481,0.151223,99191.0,99183.0,0.08920108]
[1737963825732,0.09734729,99203.0,99183.0,0.08920108]
[1737963825944,0.00028948,99210.0,99190.0,0.22373407]
[1737963826183,0.00028948,99210.0,99200.0,0.151209]
[1737963826386,0.15148348,99210.0,99196.0,0.002]
[1737963826588,0.15148348,99210.0,99190.0,0.32108136]
[1737963826797,0.00028948,99210.0,99192.0,0.15]
[1737963827007,0.00028948,99210.0,99204.0,0.151202]
[1737963827229,0.201594,99209.0,99170.0,0.22373407]
[1737963827435,0.00028948,99210.0,99194.0,0.151217]
[1737963827643,0.00028948,99210.0,99185.0,0.15]
[1737963827848,0.00028948,99210.0,99183.0,0.10402516]
[1737963828061,0.00028948,99210.0,99192.0,0.005]
[1737963828489,0.201594,99209.0,99193.0,0.201627]
[1737963828741,0.151199,99207.0,99192.0,0.005]
[1737963828956,0.151199,99207.0,99200.0,0.151209]
[1737963829122,0.15148448,99210.0,99195.0,0.201623]
[1737963829333,0.00028948,99210.0,99204.0,0.151202]
[1737963829543,0.00028948,99210.0,99183.0,0.15]
[1737963829754,0.151202,99205.0,99182.0,0.08920108]
[1737963829948,0.09734729,99209.0,99182.0,0.08920108]
[1737963829949,0.201599,99207.0,99186.0,0.201641]
[1737963830124,0.201599,99207.0,99182.0,0.08920108]
[1737963830125,0.151206,99202.0,99185.0,0.15]
[1737963830325,0.00028948,99210.0,99195.0,0.001]
[1737963830647,0.151202,99205.0,99198.0,0.151212]
[1737963830846,0.00028948,99210.0,99192.0,0.93172053]
[1737963831053,0.00028948,99210.0,99203.0,0.151204]
[1737963831267,0.151203,99204.0,99195.0,0.151216]
[1737963831413,0.00028948,99210.0,99196.0,0.151215]
[1737963831414,0.201596,99208.0,99196.0,0.151215]
[1737963831620,0.151203,99204.0,99196.0,0.151215]
[1737963831927,0.151196,99209.0,99194.0,0.08920108]
[1737963832129,0.00028948,99210.0,99194.0,0.08920108]
[1737963832337,0.00028948,99210.0,99209.0,0.151195]
[1737963836212,0.00028948,99210.0,99209.0,0.152195]
[1737963836670,0.00028948,99210.0,99209.0,0.159195]
[1737963837074,0.00028948,99210.0,99209.0,0.152195]
[1737963837314,0.00028948,99210.0,99209.0,0.153195]
[1737963839468,0.00028948,99210.0,99209.0,0.002]
[1737963839639,0.00028948,99210.0,99209.0,0.153195]
[1737963839855,0.15148348,99210.0,99209.0,0.002]
[1737963840073,0.24883077,99210.0,99209.0,0.002]
[1737963840260,0.15148348,99210.0,99209.0,0.002]
[1737963840672,0.15098348,99210.0,99209.0,0.002]
[1737963840873,0.24833077,99210.0,99209.0,0.002]
[1737963841287,0.151199,99207.0,99206.0,0.08920108]
[1737963841550,0.24854629,99207.0,99206.0,0.08920108]
[1737963842379,0.001,99210.0,99190.0,0.201632]
[1737963842594,0.001,99210.0,99192.0,0.201629]
[1737963842788,0.0015,99213.0,99193.0,0.12856898]
[1737963843008,0.0015,99213.0,99190.0,0.01363138]
[1737963843009,0.201588,99212.0,99194.0,0.03122169]
[1737963843213,0.151221,99192.0,99191.0,0.03122169]
[1737963843421,0.151223,99191.0,99190.0,0.00014818]
[1737963843618,0.25857029,99191.0,99190.0,0.00014818]
[1737963843855,0.24857029,99191.0,99190.0,0.00014818]
[1737963844280,0.2621594,99191.0,99190.0,0.00014818]
[1737963844664,0.2621594,99191.0,99128.0,0.02]
[1737963844665,0.02,99183.0,99128.0,0.151318]
[1737963844901,0.02,99183.0,99119.0,0.00029673]
[1737963844902,0.151259,99167.0,99166.0,0.00044499]
[1737963845140,0.151259,99167.0,99119.0,0.00029673]
[1737963845141,0.023,99166.0,99119.0,0.00029673]
[1737963845321,0.22373407,99160.0,99120.0,0.09734729]
[1737963845527,0.151295,99144.0,99122.0,0.151328]
[1737963845736,0.151291,99147.0,99137.0,0.151305]
[1737963845943,0.01999134,99156.0,99123.0,0.09734729]
[1737963846173,0.09734729,99155.0,99124.0,0.03124347]
[1737963846384,0.09734729,99155.0,99125.0,0.16174]
[1737963846385,0.201708,99153.0,99125.0,0.16174]
[1737963846591,0.22373407,99160.0,99119.0,0.00029673]
[1737963846592,0.22373407,99150.0,99119.0,0.00329673]
[1737963846802,0.201715,99150.0,99122.0,0.151328]
[1737963847020,0.151296,99144.0,99137.0,0.004]
[1737963847231,0.151286,99150.0,99137.0,0.004]
[1737963847468,0.01880701,99149.0,99121.0,0.201773]
[1737963847712,0.01880701,99149.0,99122.0,0.09734729]
[1737963847925,0.01880701,99149.0,99148.0,0.151288]
[1737963848132,0.01880701,99149.0,99148.0,0.48313529]
[1737963848552,0.001,99153.0,99152.0,0.301282]
[1737963848771,0.001,99153.0,99152.0,0.151282]
[1737963849414,0.00014801,99167.0,99154.0,0.151278]
[1737963849415,0.201682,99166.0,99154.0,0.151278]
[1737963849650,0.151262,99166.0,99149.0,0.201716]
[1737963849862,0.00014801,99167.0,99158.0,0.151272]
[1737963850123,0.00014801,99167.0,99150.0,0.09734729]
[1737963850349,0.00014801,99167.0,99159.0,0.201695]